fUSD/lending_fUSD_20240218
["ID","MTS","AMOUNT","RATE_DAILY","PERIOD"]
[314386416,1708253446110,-499.99,0.00037735,2]
[314386417,1708253446119,-186845.0241207,0.00037735,2]
[314386419,1708253446131,-7456.29019144,0.00037735,2]
[314386421,1708253446144,-1205.70755666,0.00037735,2]
[314386424,1708253446198,-250.1161747,0.00037399,2]
[314386425,1708253446230,-4768.81937815,0.00037399,2]
[314386426,1708253446241,-1315.36664515,0.00037399,2]
[314386456,1708253470890,655.86783963,0.0002509,2]
[314386457,1708253543362,918.15114951,0.000285,120]
[314386458,1708253566906,5475.35088695,0.0002509,2]
[314386471,1708254632386,-209.34349649,0.0002709,30]
[314386473,1708254632396,-163.8519,0.00027091,2]
[314386475,1708254632405,-208.8738167,0.00027191,2]
[314386479,1708254638148,-1340.42843054,0.00027191,2]
[314386480,1708254638161,-311.21120683,0.00027191,2]
[314386481,1708254638174,-292.27830502,0.00027191,2]
[314386482,1708254638185,-248.67721919,0.00027192,2]
[314386483,1708254638194,-138.26112746,0.000272,2]
[314386484,1708254638210,-5327.49660473,0.000272,2]
[314386485,1708254638221,-1190.49334773,0.000272,2]
[314386486,1708254638371,-322.98632987,0.000272,2]
[314386487,1708254638383,-907.49534077,0.000272,2]
[314386488,1708254638393,-153.1997826,0.000279,2]
[314386489,1708254638402,-1773.78960164,0.00028,2]
[314386490,1708254638429,-8377.13088451,0.00028,2]
[314386493,1708254638441,-317.61664443,0.00028,2]
[314386505,1708254641532,-1644.62396886,0.00028,2]
[314386506,1708254641544,-14623.12556256,0.00028,2]
[314386507,1708254641556,-44748.37873474,0.00028,2]
[314386517,1708254643204,-84.39050457,0.00028,2]
[314386518,1708254643216,-1110.0,0.00028,2]
[314386762,1708254646111,-170.22472467,0.00027999,30]
[314386763,1708254646121,-867.53199533,0.00028,2]
[314386764,1708254646379,-1881.00001383,0.00028,2]
[314386876,1708254886477,550.0,0.00025,3]
[314386934,1708255747107,-180.69,0.00025393,2]
[314386935,1708255747129,-231.44540407,0.00026991,2]
[314386938,1708255832316,-1921.34635502,0.00026991,2]
[314386939,1708255832326,-1007.64112964,0.00026992,2]
[314386940,1708255832335,-600.0,0.00027,3]
[314386941,1708255832344,-177.48,0.00027,2]
[314386942,1708255832354,-527.45,0.00027396,2]
[314386943,1708255832363,-155.0,0.00027397,2]
[314386944,1708255832373,-177.48,0.00027548,2]
[314386945,1708255832382,-1452.3764822,0.00027575,2]
[314386946,1708255832391,-150.0,0.00027702,2]
[314386947,1708255832400,-419.88,0.00027703,2]
[314386948,1708255832409,-304.26,0.00027703,2]
[314386949,1708255832419,-789.94,0.00027703,2]
[314386950,1708255832431,-1124.6592447,0.00027753,2]
[314386951,1708255832440,-2774.23,0.00027753,2]
[314386952,1708255832449,-499.99,0.00027753,2]
[314386953,1708255832458,-1412.6,0.00027753,2]
[314386954,1708255832468,-161.87,0.00027857,2]
[314386955,1708255832477,-1591.58,0.00027892,2]
[314386956,1708255832486,-499.99,0.00027892,2]
[314386957,1708255832495,-1452.3764822,0.00027903,2]
[314386958,1708255832504,-914.48,0.00027989,2]
[314386959,1708255832514,-1889.27771131,0.0002799,2]
[314386960,1708255832523,-67679.32941466,0.00028,2]
[314386961,1708255832532,-385.81,0.00028,2]
[314386962,1708255832541,-177.48,0.00028096,2]
[314386963,1708255832551,-1452.3764822,0.00028226,2]
[314386964,1708255832560,-1124.6592447,0.00028379,2]
[314386965,1708255832569,-351.12,0.00028644,2]
[314386966,1708255832579,-155.0,0.00028767,2]
[314386967,1708255832588,-198.91,0.00028905,2]
[314386969,1708255832597,-250.0,0.00029009,2]
[314386971,1708255832607,-1531.95,0.00029031,2]
[314386973,1708255832616,-250.0,0.00029102,2]
[314386975,1708255832626,-1111.04,0.00029118,2]
[314386976,1708255832635,-206.0,0.00029222,2]
[314386977,1708255832644,-182.65,0.00029226,2]
[314386978,1708255832653,-180.47,0.00029294,2]
[314386979,1708255832662,-161.87,0.00029305,2]
[314386980,1708255832671,-250.0,0.00029314,2]
[314386981,1708255832681,-1047.16,0.00029394,2]
[314386982,1708255832690,-500.0,0.00029428,2]
[314386983,1708255832699,-200.0,0.00029497,2]
[314386985,1708255832708,-1000.0,0.00029628,2]
[314386986,1708255832718,-527.45,0.0002966,2]
[314386988,1708255832727,-18865.34470762,0.000299,2]
[314386990,1708255832736,-19270.91734354,0.000299,2]
[314386992,1708255832745,-182.65,0.00029988,2]
[314386994,1708255832754,-1177.89317065,0.0003,4]
[314386996,1708255832764,-1229.54841178,0.0003,2]
[314386999,1708255832773,-3000.0,0.0003,2]
[314387000,1708255832782,-36602.783752,0.0003,2]
[314387002,1708255832793,-3000.0,0.0003,2]
[314387004,1708255832803,-155.0,0.00030137,2]
[314387006,1708255832812,-210.0,0.00030472,2]
[314387008,1708255832822,-182.65,0.00030749,2]
[314387010,1708255832831,-3000.0,0.0003122,2]
[314387012,1708255832840,-2000.0,0.00031672,2]
[314387014,1708255832849,-200.0,0.00031724,2]
[314387016,1708255832858,-188.34,0.0003174,120]
[314387018,1708255832867,-527.45,0.00031924,2]
[314387020,1708255832877,-1000.0,0.000322,30]
[314387022,1708255832886,-606.75,0.00032264,2]
[314387024,1708255832894,-153.75,0.00032402,2]
[314387026,1708255832903,-160.87,0.00032693,2]
[314387028,1708255832912,-1254.00428759,0.00033,2]
[314387030,1708255832922,-767.99,0.00033,2]
[314387032,1708255832931,-9210.45,0.00033031,2]
[314387034,1708255832941,-153.75,0.00033244,2]
[314387036,1708255832951,-4210.62725425,0.000333,4]
[314387038,1708255832960,-1000.0,0.00033331,2]
[314387040,1708255832970,-606.75,0.00033405,2]
[314387042,1708255832979,-165.81,0.00033668,2]
[314387044,1708255832988,-3000.0,0.0003372,2]
[314387046,1708255832998,-168.19,0.00033803,2]
[314387048,1708255833007,-317.77,0.00033836,2]
[314387050,1708255833017,-317.77,0.00034014,2]
[314387052,1708255833027,-151.0,0.00034081,120]
[314387054,1708255833036,-153.75,0.00034086,2]
[314387056,1708255833046,-174.74,0.00034138,120]
[314387059,1708255833056,-527.45,0.00034188,2]
[314387061,1708255833066,-317.77,0.00034192,2]
[314387063,1708255833076,-206.0,0.00034352,11]
[314387065,1708255833085,-317.77,0.0003437,2]
[314387067,1708255833094,-195.73,0.00034373,2]
[314387069,1708255833104,-152.0,0.00034406,3]
[314387072,1708255833124,-1186.02,0.00034521,2]
[314387074,1708255833134,-606.75,0.00034546,2]
[314387076,1708255833144,-317.77,0.00034548,2]
[314387078,1708255833154,-767.99,0.00034644,2]
[314387080,1708255833164,-334.27640208,0.00034719,4]
[314387082,1708255833173,-317.77,0.00034726,2]
[314387084,1708255833183,-151.0,0.00034776,30]
[314387087,1708255833193,-1648.025787,0.000348,2]
[314387089,1708255833204,-613.72817,0.000348,2]
[314387091,1708255833213,-2585.509128,0.000348,2]
[314387093,1708255833223,-1064.639498,0.000348,2]
[314387095,1708255833233,-150.0,0.00034821,2]
[314387097,1708255833243,-163.94,0.00034829,2]
[314387099,1708255833252,-418.429,0.000349,2]
[314387101,1708255833262,-317.77,0.00034904,2]
[314387103,1708255833271,-153.75,0.00034927,2]
[314387105,1708255833282,-300.35750065,0.00035,4]
[314387107,1708255833291,-14080.72397357,0.00035,2]
[314387109,1708255833301,-700.67102019,0.00035,4]
[314387111,1708255833310,-317.77,0.00035082,2]
[314387113,1708255833320,-2072.0,0.000352,2]
[314387115,1708255833329,-317.77,0.0003526,2]
[314387117,1708255833339,-2718.0,0.00035317,2]
[314387119,1708255833348,-150.0,0.00035368,2]
[314387121,1708255833360,-317.77,0.00035439,2]
[314387123,1708255833371,-151.0,0.00035486,7]
[314387125,1708255833380,-166.02,0.00035492,2]
[314387127,1708255833390,-1000.0,0.000356,2]
[314387129,1708255833399,-202.87150903,0.00035616,2]
[314387131,1708255833409,-317.77,0.00035617,2]
[314387133,1708255833419,-606.75,0.00035687,2]
[314387135,1708255833430,-153.75,0.00035769,2]
[314387138,1708255833440,-317.77,0.00035795,2]
[314387140,1708255833450,-500.0,0.00035797,2]
[314387142,1708255833460,-652.26,0.00035797,2]
[314387144,1708255833471,-970.46,0.00035797,2]
[314387146,1708255833480,-500.0,0.00035797,2]
[314387148,1708255833490,-3924.06,0.00035797,2]
[314387150,1708255833499,-741.76,0.00035797,2]
[314387152,1708255833509,-1097.73,0.00035797,2]
[314387154,1708255833519,-500.0,0.00035797,2]
[314387156,1708255833529,-500.0,0.00035797,2]
[314387158,1708255833538,-500.0,0.00035797,2]
[314387160,1708255833549,-500.0,0.00035797,2]
[314387162,1708255833558,-500.0,0.00035797,2]
[314387164,1708255833567,-500.0,0.00035797,2]
[314387166,1708255833576,-1186.02,0.00035798,2]
[314387168,1708255833585,-2472.038681,0.000358,2]
[314387170,1708255833595,-920.592255,0.000358,2]
[314387172,1708255833605,-3878.263692,0.000358,2]
[314387174,1708255833614,-1596.959248,0.000358,2]
[314387176,1708255833624,-1818.27659789,0.00035846,4]
[314387178,1708255833633,-150.0,0.00035916,7]
[314387180,1708255833642,-1000.0,0.00035919,2]
[314387182,1708255833651,-317.77,0.00035973,2]
[314387184,1708255833662,-1500.43784724,0.00036,4]
[314387187,1708255833672,-395.31,0.00036,30]
[314387188,1708255833681,-493.597711,0.00036,4]
[314387191,1708255833691,-3996.98376364,0.00036,2]
[314387193,1708255833700,-720.45301296,0.00036113,7]
[314387195,1708255833710,-317.77,0.00036151,2]
[314387197,1708255833720,-151.0,0.0003621,4]
[314387199,1708255833729,-500.0,0.00036213,2]
[314387201,1708255833739,-500.0,0.00036213,2]
[314387203,1708255833748,-500.0,0.00036213,2]
[314387205,1708255833757,-500.0,0.00036213,2]
[314387207,1708255833766,-500.0,0.00036213,2]
[314387209,1708255833775,-323.31,0.00036213,2]
[314387211,1708255833785,-500.0,0.00036213,2]
[314387213,1708255833794,-500.0,0.00036213,2]
[314387215,1708255833804,-506.76,0.00036213,2]
[314387217,1708255833813,-500.0,0.00036213,2]
[314387219,1708255833825,-500.0,0.00036213,2]
[314387221,1708255833835,-500.0,0.00036213,2]
[314387223,1708255833844,-500.0,0.00036213,2]
[314387225,1708255833855,-500.0,0.00036213,2]
[314387227,1708255833864,-500.0,0.00036213,2]
[314387229,1708255833874,-500.0,0.00036213,2]
[314387231,1708255833884,-239.14314218,0.00036213,2]
[314387234,1708255833894,-500.0,0.00036213,2]
[314387236,1708255833903,-500.0,0.00036213,2]
[314387238,1708255833912,-500.0,0.00036213,2]
[314387239,1708255833921,-500.0,0.00036213,2]
[314387240,1708255833931,-555.8,0.00036213,2]
[314387242,1708255833940,-500.0,0.00036213,2]
[314387244,1708255833950,-500.0,0.00036213,2]
[314387246,1708255833959,-500.0,0.00036213,2]
[314387248,1708255833968,-500.0,0.00036213,2]
[314387250,1708255833978,-253.01,0.00036213,2]
[314387252,1708255833988,-500.0,0.00036213,2]
[314387254,1708255833998,-1126.94,0.00036213,2]
[314387256,1708255834007,-500.0,0.00036213,2]
[314387258,1708255834017,-500.0,0.00036213,2]
[314387261,1708255834027,-500.0,0.00036213,2]
[314387262,1708255834036,-500.0,0.00036213,2]
[314387264,1708255834046,-500.0,0.00036213,2]
[314387266,1708255834056,-500.0,0.00036213,2]
[314387269,1708255834065,-500.0,0.00036213,2]
[314387270,1708255834075,-500.0,0.00036213,2]
[314387273,1708255834085,-500.0,0.00036213,2]
[314387275,1708255834095,-512.21,0.00036213,2]
[314387277,1708255834105,-500.0,0.00036213,2]
[314387279,1708255834115,-500.0,0.00036213,2]
[314387281,1708255834124,-500.0,0.00036213,2]
[314387283,1708255834133,-500.0,0.00036213,2]
[314387285,1708255834143,-500.0,0.00036213,2]
[314387286,1708255834152,-500.0,0.00036213,2]
[314387288,1708255834162,-474.77627804,0.00036213,2]
[314387291,1708255834171,-500.0,0.00036213,2]
[314387292,1708255834181,-1005.0,0.00036213,2]
[314387294,1708255834190,-276.0,0.00036213,2]
[314387296,1708255834199,-858.0,0.00036213,2]
[314387298,1708255834208,-429.0,0.00036213,2]
[314387300,1708255834217,-321.0,0.00036213,2]
[314387302,1708255834227,-150.0,0.00036213,2]
[314387304,1708255834236,-343.0,0.00036213,2]
[314387306,1708255834246,-454.0,0.00036213,2]
[314387308,1708255834255,-2691.0,0.00036213,2]
[314387310,1708255834265,-8169.0,0.00036213,2]
[314387312,1708255834275,-1952.416,0.00036213,2]
[314387314,1708255834285,-18160.52965773,0.00036213,2]
[314387317,1708255834306,-1698.47034227,0.00036213,2]
[314387319,1708255834315,-3167.207,0.00036213,2]
[314387321,1708255834325,-2291.0,0.00036213,2]
[314387323,1708255834334,-953.0,0.00036213,2]
[314387325,1708255834344,-842.0,0.00036213,2]
[314387327,1708255834354,-1038.0,0.00036213,2]
[314387329,1708255834363,-1231.0,0.00036213,2]
[314387331,1708255834372,-3000.0,0.0003622,2]
[314387332,1708255834382,-500.0,0.00036286,7]
[314387333,1708255834391,-162.0,0.00036286,2]
[314387334,1708255834400,-500.0,0.00036286,2]
[314387335,1708255834409,-228.75909848,0.00036286,2]
[314387336,1708255834420,-500.0,0.00036286,2]
[314387337,1708255834431,-500.0,0.00036286,2]
[314387338,1708255834440,-321.17690249,0.00036286,2]
[314387339,1708255834449,-500.0,0.00036286,2]
[314387340,1708255834458,-349.26895881,0.00036286,2]
[314387342,1708255834468,-500.0,0.00036286,2]
[314387344,1708255834477,-500.0,0.00036286,2]
[314387346,1708255834487,-500.0,0.00036286,2]
[314387348,1708255834496,-500.0,0.00036286,2]
[314387350,1708255834507,-313.22,0.00036286,2]
[314387352,1708255834516,-374.12,0.00036286,2]
[314387354,1708255834526,-500.0,0.00036286,2]
[314387356,1708255834535,-500.0,0.00036286,2]
[314387358,1708255834544,-358.68918523,0.00036286,2]
[314387360,1708255834553,-500.0,0.00036286,2]
[314387362,1708255834562,-500.0,0.00036286,2]
[314387364,1708255834572,-589.91,0.00036286,2]
[314387366,1708255834581,-500.0,0.00036286,2]
[314387368,1708255834590,-341.11,0.00036286,2]
[314387370,1708255834600,-500.0,0.00036286,2]
[314387372,1708255834609,-208.05,0.00036286,2]
[314387374,1708255834618,-500.0,0.00036286,2]
[314387376,1708255834627,-500.0,0.00036286,2]
[314387378,1708255834636,-197.09711991,0.00036286,2]
[314387380,1708255834646,-500.0,0.00036286,2]
[314387382,1708255834655,-500.0,0.00036286,2]
[314387384,1708255834664,-500.0,0.00036286,2]
[314387386,1708255834674,-500.0,0.00036286,2]
[314387388,1708255834683,-500.0,0.00036286,2]
[314387390,1708255834693,-500.0,0.00036286,2]
[314387392,1708255834702,-500.0,0.00036286,2]
[314387394,1708255834712,-500.0,0.00036286,2]
[314387396,1708255834721,-500.0,0.00036286,2]
[314387398,1708255834732,-500.0,0.00036286,2]
[314387400,1708255834741,-500.0,0.00036286,2]
[314387402,1708255834753,-500.0,0.00036286,2]
[314387405,1708255834762,-767.99,0.00036288,2]
[314387407,1708255834772,-14775.43249172,0.00036288,2]
[314387761,1708255838315,-214.05539656,0.00028,3]
[314387762,1708255838325,-464.92860719,0.00035796,2]
[314387764,1708255838333,-500.0,0.00036213,2]
[314387766,1708255838342,-1084.98669873,0.00036213,2]
[314387768,1708255838355,-170.01330127,0.00036213,2]
[314387769,1708255838365,-216.0,0.00036213,2]
[314387771,1708255838374,-1950.0,0.00036213,2]
[314387772,1708255838383,-500.0,0.00036286,2]
[314387774,1708255838392,-2218.25120828,0.00036288,2]
[314387776,1708255838401,-1265.24889283,0.00036297,2]
[314387778,1708255838411,-317.77,0.00036329,2]
[314387779,1708255838421,-720.45301295,0.00036368,7]
[314387781,1708255838432,-257.92374309,0.00036387,2]
[314387783,1708255838442,-500.0,0.00036388,2]
[314387784,1708255838451,-413.30918513,0.00036388,2]
[314387786,1708255838461,-652.26,0.00036388,2]
[314387788,1708255838470,-970.46,0.00036388,2]
[314387789,1708255838479,-500.0,0.00036388,2]
[314387791,1708255838488,-3924.06,0.00036388,2]
[314387793,1708255838498,-741.76,0.00036388,2]
[314387795,1708255838508,-1097.73,0.00036388,2]
[314387796,1708255838517,-500.0,0.00036388,2]
[314387798,1708255838526,-9182.00065645,0.00036389,2]
[314387800,1708255838540,-23132.00004322,0.00036389,2]
[314387802,1708255838549,-32314.00069961,0.00036389,2]
[314387804,1708255838558,-32314.00069961,0.00036389,2]
[314387805,1708255838567,-32314.00069961,0.00036389,2]
[314387807,1708255838577,-32314.00069961,0.00036389,2]
[314387809,1708255838586,-32314.00069961,0.00036389,2]
[314387810,1708255838595,-540.67472563,0.00036397,7]
[314387812,1708255838604,-500.0,0.00036397,2]
[314387813,1708255838613,-502.97,0.00036397,2]
[314387815,1708255838623,-500.0,0.00036397,2]
[314387817,1708255838632,-500.0,0.00036397,2]
[314387819,1708255838641,-500.0,0.00036397,2]
[314387821,1708255838650,-500.0,0.00036397,2]
[314387822,1708255838659,-500.0,0.00036397,2]
[314387824,1708255838668,-500.0,0.00036397,2]
[314387826,1708255838678,-500.0,0.00036397,2]
[314387828,1708255838687,-500.0,0.00036397,2]
[314387829,1708255838697,-506.76,0.00036397,2]
[314387831,1708255838706,-370.08,0.00036397,2]
[314387833,1708255838715,-328.48,0.00036397,2]
[314387835,1708255838724,-500.0,0.00036397,2]
[314387837,1708255838734,-293.37,0.00036397,2]
[314387838,1708255838743,-602.84,0.00036397,2]
[314387840,1708255838752,-500.0,0.00036397,2]
[314387842,1708255838762,-500.0,0.00036397,2]
[314387844,1708255838771,-500.0,0.00036397,2]
[314387846,1708255838780,-500.0,0.00036397,2]
[314387847,1708255838790,-500.0,0.00036397,2]
[314387849,1708255838799,-154.23,0.00036397,2]
[314387851,1708255838808,-500.0,0.00036397,2]
[314387853,1708255838817,-500.0,0.00036397,2]
[314387855,1708255838826,-512.21,0.00036397,2]
[314387856,1708255838835,-500.0,0.00036397,2]
[314387858,1708255838845,-500.0,0.00036397,2]
[314387860,1708255838854,-500.0,0.00036397,2]
[314387862,1708255838863,-500.0,0.00036397,2]
[314387864,1708255838872,-500.0,0.00036397,2]
[314387866,1708255838881,-514.78,0.00036397,2]
[314387867,1708255838890,-500.0,0.00036397,2]
[314387869,1708255838899,-141167.6626,0.00036398,2]
[314387871,1708255838909,-188.55770394,0.000364,2]
[314387873,1708255838918,-527.45,0.00036452,2]
[314387875,1708255838928,-150.0,0.00036464,7]
[314387876,1708255838937,-151.021833,0.00036496,2]
[314387878,1708255838945,-151.021833,0.00036496,2]
[314387880,1708255838955,-151.021833,0.00036496,2]
[314387882,1708255838964,-151.021833,0.00036496,2]
[314387896,1708255839146,-171.021833,0.00036496,2]
[314387897,1708255839157,-151.021833,0.00036497,3]
[314387898,1708255839167,-151.021833,0.00036497,3]
[314387899,1708255839178,-151.021833,0.00036497,3]
[314387900,1708255839187,-151.021833,0.00036497,3]
[314387901,1708255839197,-151.021833,0.00036497,3]
[314387902,1708255839208,-171.021833,0.00036497,3]
[314387904,1708255839218,-165.021833,0.00036497,3]
[314387905,1708255839229,-519.54613169,0.00036498,4]
[314387907,1708255839241,-151.021833,0.00036498,4]
[314387910,1708255839253,-151.021833,0.00036498,4]
[314387912,1708255839265,-151.021833,0.00036498,4]
[314387914,1708255839276,-151.021833,0.00036498,4]
[314387916,1708255839287,-151.021833,0.00036498,4]
[314387918,1708255839299,-171.021833,0.00036498,4]
[314387920,1708255839310,-171.021833,0.00036498,4]
[314387922,1708255839320,-381.15208745,0.00036498,2]
[314387923,1708255839331,-500.0,0.00036498,2]
[314387926,1708255839342,-500.0,0.00036498,2]
[314387928,1708255839352,-1126.94,0.00036498,2]
[314387930,1708255839363,-500.0,0.00036498,2]
[314387931,1708255839373,-500.0,0.00036498,2]
[314387934,1708255839385,-500.0,0.00036499,2]
[314387935,1708255839396,-500.0,0.00036499,2]
[314387937,1708255839406,-500.0,0.00036499,2]
[314387940,1708255839417,-500.0,0.00036499,2]
[314387942,1708255839427,-500.0,0.00036499,2]
[314387944,1708255839438,-500.0,0.00036499,2]
[314387946,1708255839449,-500.0,0.00036499,2]
[314387948,1708255839459,-500.0,0.00036499,2]
[314387950,1708255839472,-506.76,0.00036499,2]
[314387952,1708255839482,-500.0,0.00036499,2]
[314387954,1708255839493,-500.0,0.00036499,2]
[314387956,1708255839505,-500.0,0.00036499,2]
[314387958,1708255839517,-652.26,0.00036499,2]
[314387960,1708255839527,-500.0,0.00036499,2]
[314387962,1708255839538,-970.46,0.00036499,2]
[314387964,1708255839547,-500.0,0.00036499,2]
[314387966,1708255839557,-500.0,0.00036499,2]
[314387968,1708255839568,-500.0,0.00036499,2]
[314387970,1708255839578,-512.21,0.00036499,2]
[314387972,1708255839588,-3924.06,0.00036499,2]
[314387974,1708255839598,-741.76,0.00036499,2]
[314387976,1708255839608,-1097.73,0.00036499,2]
[314387978,1708255839618,-500.0,0.00036499,2]
[314387980,1708255839628,-500.0,0.00036499,2]
[314387982,1708255839639,-500.0,0.00036499,2]
[314387984,1708255839648,-500.0,0.00036499,2]
[314387986,1708255839658,-500.0,0.00036499,2]
[314387988,1708255839668,-841389.00775895,0.000365,3]
[314387990,1708255839677,-207553.11697538,0.000365,2]
[314387992,1708255839686,-2288.11,0.000365,30]
[314387994,1708255839696,-32314.00069961,0.000365,2]
[314387996,1708255839705,-317.77,0.00036507,2]
[314387998,1708255839715,-165.0,0.00036523,7]
[314388000,1708255839724,-505.39514354,0.00036532,2]
[314388002,1708255839735,-153.75,0.0003661,2]
[314388004,1708255839744,-720.45301295,0.00036624,8]
[314388006,1708255839754,-150.0,0.00036626,2]
[314388008,1708255839763,-563.14686525,0.0003668,30]
[314388010,1708255839773,-317.77,0.00036685,2]
[314388012,1708255839782,-152.26606722,0.00036698,2]
[314388014,1708255839793,-172.11281021,0.00036698,2]
[314388016,1708255839804,-535.90876336,0.00036698,2]
[314388018,1708255839814,-2029.042684,0.000367,9]
[314388020,1708255839824,-150.0,0.00036711,2]
[314388022,1708255839833,-156.22411121,0.00036713,2]
[314388024,1708255839844,-158.0,0.00036723,7]
[314388026,1708255839853,-188.55770391,0.00036725,2]
[314388028,1708255839863,-197.890604,0.00036787,2]
[314388030,1708255839873,-298.036869,0.00036787,2]
[314388032,1708255839883,-228.717217,0.00036787,2]
[314388034,1708255839892,-1720696.57837809,0.00036794,2]
[314388037,1708255839912,-4964.41844246,0.00036794,2]
[314388048,1708255840005,-500.0,0.00035796,2]
[314388051,1708255840014,-7087.43925334,0.00036794,2]
[314388053,1708255840031,-7376.863403,0.00036794,2]
[314388176,1708255841707,-500.0,0.00035797,2]
[314388178,1708255841717,-500.0,0.00036213,2]
[314388180,1708255841726,-273.91928429,0.00036213,2]
[314388182,1708255841735,-500.0,0.00036388,2]
[314388184,1708255841745,-579.91789804,0.00036388,2]
[314388186,1708255841754,-412.32,0.00036397,2]
[314388188,1708255841763,-500.0,0.00036498,2]
[314388191,1708255841773,-500.0,0.00036499,2]
[314388193,1708255841782,-506889.47097582,0.00036794,2]
[314388195,1708255841795,-51750.0,0.00036794,2]
[314388201,1708255841847,-444.19536316,0.00036794,2]
[314388204,1708255841859,-518.3988627,0.00036794,2]
[314388361,1708255843336,-500.0,0.00036213,2]
[314388363,1708255843345,-500.0,0.00036397,2]
[314388365,1708255843354,-500.0,0.00036499,2]
[314388367,1708255843364,-5009.23349809,0.00036794,2]
[314388369,1708255843375,-3049.98757985,0.00036794,2]
[314388371,1708255843387,-718.5215511,0.00036794,2]
[314388373,1708255843398,-645377.14364979,0.00036794,2]
[314388376,1708255843410,-539584.57857982,0.00036794,2]
[314388378,1708255843419,-10872.96956799,0.00036798,2]
[314388380,1708255843431,-10872.96956799,0.00036798,2]
[314388382,1708255843440,-10872.96956799,0.00036798,2]
[314388384,1708255843449,-10872.96956799,0.00036798,2]
[314388386,1708255843459,-500.0,0.00036799,2]
[314388388,1708255843468,-506.76,0.00036799,2]
[314388390,1708255843478,-500.0,0.00036799,2]
[314388392,1708255843487,-500.0,0.00036799,2]
[314388394,1708255843497,-500.0,0.00036799,2]
[314388396,1708255843508,-652.26,0.00036799,2]
[314388398,1708255843520,-652.26,0.00036799,2]
[314388400,1708255843529,-652.26,0.00036799,2]
[314388402,1708255843539,-652.26,0.00036799,2]
[314388404,1708255843548,-500.0,0.00036799,2]
[314388406,1708255843557,-500.0,0.00036799,2]
[314388408,1708255843567,-1126.94,0.00036799,2]
[314388410,1708255843577,-970.46,0.00036799,2]
[314388412,1708255843587,-970.46,0.00036799,2]
[314388414,1708255843598,-970.46,0.00036799,2]
[314388417,1708255843607,-970.46,0.00036799,2]
[314388419,1708255843617,-500.0,0.00036799,2]
[314388421,1708255843626,-500.0,0.00036799,2]
[314388423,1708255843636,-500.0,0.00036799,2]
[314388425,1708255843646,-500.0,0.00036799,2]
[314388427,1708255843655,-500.0,0.00036799,2]
[314388429,1708255843665,-500.0,0.00036799,2]
[314388431,1708255843674,-500.0,0.00036799,2]
[314388433,1708255843684,-512.21,0.00036799,2]
[314388435,1708255843693,-3924.06,0.00036799,2]
[314388437,1708255843702,-3924.06,0.00036799,2]
[314388439,1708255843711,-3924.06,0.00036799,2]
[314388441,1708255843721,-3924.06,0.00036799,2]
[314388442,1708255843730,-741.76,0.00036799,2]
[314388443,1708255843739,-741.76,0.00036799,2]
[314388444,1708255843748,-741.76,0.00036799,2]
[314388445,1708255843758,-741.76,0.00036799,2]
[314388446,1708255843767,-500.0,0.00036799,2]
[314388447,1708255843777,-1097.73,0.00036799,2]
[314388448,1708255843787,-1097.73,0.00036799,2]
[314388449,1708255843797,-1097.73,0.00036799,2]